bitfinex-derivatives/quotes_SOLF0:USTF0_20260107
["timestamp","ask_amount","ask_price","bid_price","bid_amount"]
[1767790970729,6.69960113,137.98,137.93,0.31720922]
[1767790972326,6.69880112,138.0,137.93,0.31720922]
[1767790972532,0.17180112,138.02,137.93,0.31720922]
[1767790973532,6.5261,138.01,137.95,6.84610922]
[1767790973833,6.5261,138.01,137.96,0.31720922]
[1767790974041,85.73180112,138.04,137.96,0.31720922]
[1767790974732,0.17180112,138.03,137.96,0.31720922]
[1767790975541,6.5257,138.02,137.96,6.84560922]
[1767790975836,6.5257,138.02,137.97,0.31720922]
[1767790976434,6.69750111,138.02,137.97,0.31720922]
[1767790979627,0.17180111,138.02,137.97,0.31720922]
[1767790981439,0.17142655,138.04,137.98,0.32867203]
[1767790981638,0.17142655,138.06,137.98,0.32867203]
[1767790982340,0.17142655,138.06,138.01,0.05081555]
[1767790987842,85.54,138.09,137.97,0.3073189]
[1767790987843,0.17130616,138.05,137.97,0.3073189]
[1767790988228,0.17130616,138.04,137.97,0.3073189]
[1767790988541,0.17130616,138.03,137.97,0.3073189]
[1767790989047,6.69650616,138.03,137.97,0.3073189]
[1767790989244,0.04928113,138.01,137.97,0.3073189]
[1767790990935,0.04928113,138.01,137.97,6.8352189]
[1767790992942,0.04928113,138.01,137.97,0.3073189]
[1767790994742,0.04928113,138.01,137.96,6.5284]
[1767790995651,0.22058728,138.01,137.96,6.5284]
[1767790999142,0.22058728,138.01,137.96,6.8357189]
[1767791001549,0.04928113,138.01,137.97,0.3073189]
[1767791002349,0.04928113,138.01,137.98,0.3073189]
[1767791002760,0.17130614,138.05,137.98,0.3073189]
[1767791003057,0.17130614,138.05,138.0,6.8339189]
[1767791004247,0.17130614,138.05,138.0,0.3073189]
[1767791004446,0.22058727,138.04,137.98,0.3073189]
[1767791005552,6.74538727,138.04,137.98,0.3073189]
[1767791007059,0.22058726,138.03,137.98,0.3073189]
[1767791011664,0.22058726,138.03,137.96,0.3073189]
[1767791011665,0.22058726,138.02,137.96,0.3073189]
[1767791013362,0.22058726,138.02,137.96,6.8357189]
[1767791013558,1.41369665,138.03,137.97,0.32971352]
[1767791013754,0.22130097,138.04,137.97,0.32971352]
[1767791014564,0.22130097,138.04,137.98,6.85721352]
[1767791018477,0.22130097,138.06,138.0,0.32971352]
[1767791018661,1.63499762,138.07,138.0,0.32971352]
[1767791018866,0.22130097,138.06,138.0,0.32971352]
[1767791020976,0.22130097,138.05,137.98,0.32971352]
[1767791021272,1.63499762,138.05,137.98,0.32971352]
[1767791021668,1.63499762,138.05,137.98,6.85721352]
[1767791024476,1.63499762,138.05,137.99,0.32971352]
[1767791026882,6.74550097,138.05,137.99,0.32971352]
[1767791032886,0.22130097,138.05,137.99,6.85671352]
[1767791033074,0.22130097,138.05,138.0,0.32971352]
[1767791034586,0.22130097,138.05,137.96,8.99306997]
[1767791034587,0.22130096,138.08,138.01,0.32971352]
[1767791035589,0.22130096,138.08,138.02,6.85531352]
[1767791037891,0.22130096,138.08,138.03,0.32971352]
[1767791039378,1.41369665,138.1,138.04,0.32971352]
[1767791039379,0.22130095,138.1,138.04,0.32971352]
[1767791040494,0.22130095,138.1,138.04,6.85431352]
[1767791042295,6.74320095,138.1,138.04,0.32971352]
[1767791046198,6.74320095,138.1,138.06,0.04907883]
[1767791051399,0.22053086,138.09,138.06,0.04907883]
[1767791053900,93.67562751,138.11,138.06,0.04907883]
[1767791054291,0.22053086,138.1,138.06,0.04907883]
[1767791057210,6.74243086,138.1,138.06,0.04907883]
[1767791057399,6.74243086,138.1,138.04,6.85431352]
[1767791057596,0.05116901,138.09,138.04,6.85431352]
[1767791059798,0.27169987,138.09,138.04,6.85431352]
[1767791064506,0.05116901,138.09,138.05,0.32396269]
[1767791064702,23.59834997,138.13,138.06,0.32396269]
[1767791064703,0.22053085,138.13,138.06,0.32396269]
[1767791064902,85.72053085,138.13,138.06,0.32396269]
[1767791065102,85.5,138.13,138.06,0.32396269]
[1767791065404,85.5,138.13,138.03,101.4991]
[1767791065405,85.5,138.13,138.08,6.84676269]
[1767791065602,6.74043085,138.15,138.09,0.32396269]
[1767791066811,0.22053085,138.15,138.1,0.32396269]
[1767791073911,0.22053085,138.15,138.1,6.84576269]
[1767791074710,0.22053085,138.15,138.11,0.05274381]
[1767791074907,85.5,138.16,138.11,0.3528898]
[1767791075212,85.68756185,138.16,138.11,0.3528898]
[1767791075814,0.18756185,138.15,138.11,0.05274381]
[1767791079118,0.18756184,138.14,138.09,0.30014599]
[1767791079316,0.24111033,138.14,138.09,0.30014599]
[1767791082226,0.24111033,138.14,138.09,6.82244599]
[1767791089540,0.05354849,138.14,138.1,0.30014599]
[1767791097144,0.05354849,138.14,138.1,6.82194599]
[1767791097346,24.01773353,138.18,138.11,0.30014599]
[1767791097546,24.01773353,138.18,138.11,0.34916461]
[1767791097746,109.49773353,138.18,138.11,0.34916461]
[1767791098045,0.24111033,138.19,138.11,0.34916461]
[1767791098247,85.48,138.18,138.11,0.34916461]
[1767791098446,85.48,138.18,138.11,0.30014599]
[1767791098645,85.72111033,138.18,138.11,0.30014599]
[1767791098848,6.5186,138.17,138.12,0.30014599]
[1767791099341,6.75971033,138.17,138.12,0.30014599]
[1767791100946,6.75971033,138.17,138.09,6.5219]
[1767791101148,6.75971033,138.17,138.1,0.32744257]
[1767791101447,6.75971033,138.17,138.07,0.32744257]
[1767791101448,0.27403027,138.15,138.07,0.32744257]
[1767791101749,6.5206,138.13,138.07,0.32744257]
[1767791101942,6.7946646,138.13,138.07,0.32744257]
[1767791103051,0.2740646,138.12,138.07,0.32744257]
[1767791104649,6.5215,138.11,138.07,0.32744257]
[1767791107246,6.5208,138.13,138.07,0.32744257]
[1767791107746,6.5198,138.15,138.08,0.32034622]
[1767791109552,6.5198,138.15,138.09,0.32034622]
[1767791109848,8.72515181,138.17,138.09,0.32034622]
[1767791110044,6.5189,138.17,138.09,0.32034622]
[1767791110548,6.5189,138.17,138.11,0.32034622]
[1767791111851,6.5189,138.17,138.13,0.05426804]
[1767791113255,0.2740646,138.18,138.13,0.05426804]
[1767791114054,0.2740646,138.17,138.13,0.05426804]
[1767791119455,91.9977,138.19,138.13,0.37461426]
[1767791119456,0.2740646,138.19,138.13,0.37461426]
[1767791120055,0.2740646,138.19,138.13,6.89481426]
[1767791120554,1.68434148,138.19,138.13,6.89481426]
[1767791122165,0.2740646,138.18,138.13,0.37461426]
[1767791122363,1.68434148,138.17,138.13,0.05426804]
[1767791122762,1.41027688,138.16,138.13,0.05426804]
[1767791123563,8.20294148,138.17,138.13,0.05426804]
[1767791123761,1.68434148,138.17,138.13,0.05426804]
[1767791125669,8.20294148,138.17,138.13,0.05426804]
[1767791127770,1.68434148,138.17,138.13,0.05426804]
[1767791128159,6.7921646,138.18,138.13,0.37461426]
[1767791128367,1.41027688,138.19,138.13,6.89481426]
[1767791128672,1.41027688,138.19,138.14,0.32034622]
[1767791128873,1.68434148,138.19,138.14,0.32034622]
[1767791130369,0.2740646,138.19,138.14,0.32034622]
[1767791131470,8.20184147,138.2,138.14,0.32034622]
[1767791131666,8.20184147,138.2,138.14,6.84014622]
[1767791132974,6.79042301,138.22,138.15,6.83510072]
[1767791133175,1.68419989,138.21,138.15,6.83510072]
[1767791134275,1.68419989,138.21,138.16,6.5188]
[1767791136971,8.20099989,138.21,138.15,6.83530072]
[1767791137183,8.20099989,138.21,138.12,101.4338]
[1767791137184,0.27392301,138.2,138.12,0.31580072]
[1767791137368,1.41027688,138.19,138.12,0.31580072]
[1767791137677,8.20189989,138.19,138.13,6.52]
[1767791142374,1.41027688,138.17,138.12,0.31580072]
[1767791143777,1.68419988,138.17,138.12,0.31580072]
[1767791144380,0.273923,138.16,138.1,0.31580072]
[1767791144587,1.68419988,138.15,138.1,6.5218]
[1767791145481,1.68419988,138.15,138.1,6.83760072]
[1767791147387,8.20369988,138.15,138.1,0.31580072]
[1767791147587,1.41027688,138.14,138.1,0.31580072]
[1767791147789,1.68419988,138.14,138.08,6.83830072]
[1767791149692,8.20419988,138.14,138.08,6.83830072]
[1767791150295,6.5205,138.13,138.08,0.31580072]
[1767791152692,6.794423,138.13,138.08,0.31580072]
[1767791153491,8.20509988,138.12,138.06,0.31580072]
[1767791153995,8.20509988,138.12,138.06,6.83950072]
[1767791155087,0.273923,138.11,138.06,6.83950072]
[1767791162393,0.273923,138.11,138.06,0.31580072]
[1767791162597,7.93117688,138.12,138.06,0.31580072]
[1767791162794,0.27399415,138.15,138.09,0.33094445]
[1767791163390,85.75399415,138.17,138.11,0.05112363]
[1767791163595,1.41027688,138.16,138.11,0.05112363]
[1767791164195,85.75399415,138.17,138.11,0.05112363]
[1767791164599,6.5195,138.15,138.11,0.05112363]
[1767791167298,0.27399415,138.16,138.11,0.05112363]
[1767791171199,6.79299415,138.16,138.11,0.05112363]
[1767791172001,6.79299415,138.16,138.08,6.85374445]
[1767791172002,0.27399415,138.14,138.08,6.85374445]
[1767791173402,0.04815061,138.12,138.09,0.33094445]
[1767791173804,0.04815061,138.12,138.09,6.85324445]
[1767791175795,0.32214476,138.12,138.07,6.5228]
[1767791175998,0.32214476,138.12,138.05,0.33094445]
[1767791176301,0.04815061,138.12,138.05,0.33094445]
[1767791177611,0.04815061,138.12,138.07,0.33094445]
[1767791178108,1.41027688,138.13,138.07,0.33094445]
[1767791178409,0.05355636,138.11,138.07,0.33094445]
[1767791187719,6.52,138.14,138.07,0.33094445]
[1767791187921,6.52,138.14,138.08,0.33094445]
[1767791189514,6.5204,138.13,138.08,0.33094445]
[1767791190032,2.20539244,138.12,138.04,0.33094445]
[1767791190518,87.68539244,138.12,138.04,0.33094445]
[1767791192622,6.5224,138.09,138.04,0.33094445]
[1767791207433,87.68539244,138.12,138.04,6.5246]
[1767791207434,6.5218,138.11,138.04,6.5246]
[1767791207635,6.5218,138.11,138.0,101.5202]
[1767791207636,6.5218,138.11,138.05,0.31762084]
[1767791208033,92.0209,138.13,138.05,6.84172084]
[1767791208535,85.5,138.13,138.05,6.84172084]
[1767791209039,85.5,138.13,138.01,101.5149]
[1767791209040,6.5212,138.12,138.06,6.84132084]
[1767791211138,85.5,138.13,138.02,0.31762084]
[1767791211936,85.5,138.13,138.03,6.5251]
[1767791211937,6.5223,138.09,138.03,6.5251]
[1767791212733,2.20539244,138.11,138.02,6.84322084]
[1767791212734,6.5231,138.08,138.02,6.84322084]
[1767791213038,85.5,138.1,138.02,6.84322084]
[1767791214539,6.5223,138.09,138.02,6.84322084]
[1767791221046,6.5229,138.08,138.02,6.84322084]
[1767791221942,6.5233,138.07,138.0,6.84703924]
[1767791222146,2.20539244,138.08,138.0,6.84703924]
[1767791224140,6.5243,138.05,138.0,0.32093924]
[1767791224344,6.5243,138.05,137.98,6.84813924]
[1767791224945,6.5243,138.05,137.99,6.84793924]
[1767791227246,6.5248,138.04,137.97,0.32093924]
[1767791228646,6.5248,138.04,137.98,6.5275]
[1767791229055,2.20539244,138.05,137.97,0.32093924]
[1767791229254,85.52,138.04,137.94,0.32093924]
[1767791230262,85.52,138.04,137.94,6.84993924]
[1767791230761,85.52,138.04,137.95,0.32093924]
[1767791231558,6.5261,138.01,137.95,0.32093924]
[1767791232057,2.20539244,138.02,137.93,0.32093924]
[1767791232844,6.5266,138.0,137.93,6.85083924]
[1767791233258,87.74539244,138.02,137.94,0.32093924]
[1767791233764,6.5266,138.0,137.94,6.85023924]
[1767791234059,6.5266,138.0,137.94,0.32093924]
[1767791234257,6.5272,137.99,137.92,6.85093924]
[1767791234959,6.5272,137.99,137.93,0.32093924]
[1767791235859,6.5272,137.99,137.87,13.0655]
[1767791235860,2.20539244,137.97,137.87,0.32093924]
[1767791236060,87.74539244,137.97,137.87,0.32093924]
[1767791236357,85.54,137.96,137.88,0.32093924]
[1767791237262,94.27359244,137.97,137.88,0.32093924]
[1767791237653,87.74539244,137.97,137.88,0.32093924]
[1767791237854,87.74539244,137.97,137.86,0.32093924]
[1767791237855,2.20539244,137.94,137.86,0.32093924]
[1767791238057,87.76539244,137.94,137.86,0.32093924]
[1767791238255,101.5773,137.93,137.82,0.32093924]
[1767791238460,103.79049244,137.92,137.82,0.32093924]
[1767791238655,103.79049244,137.92,137.74,110.70686997]
[1767791238656,101.5974,137.91,137.74,110.70686997]
[1767791238960,2.20539244,137.86,137.74,101.7167]
[1767791239456,2.20539244,137.86,137.73,101.7208]
[1767791239457,85.56,137.85,137.73,101.7208]
[1767791239659,85.56,137.85,137.72,101.7306]
[1767791239859,6.5345,137.84,137.72,6.5398]
[1767791240252,6.535,137.83,137.72,6.5398]
[1767791240568,6.535,137.83,137.68,1.41857893]
[1767791240569,1.41857893,137.79,137.68,1.41857893]
[1767791240756,1.41857893,137.78,137.69,0.32093924]
[1767791240956,85.58,137.82,137.73,0.32093924]
[1767791241169,86.99857893,137.84,137.75,0.32093924]
[1767791241461,85.58,137.85,137.77,0.32093924]
[1767791241669,85.58,137.86,137.79,1.41857893]
[1767791241969,85.58,137.89,137.8,0.32093924]
[1767791242150,85.58,137.91,137.83,1.73951817]
[1767791242354,85.58,137.91,137.84,0.32093924]
[1767791242767,87.01857893,137.94,137.84,0.32093924]
[1767791243067,6.5302,137.93,137.84,0.32093924]
[1767791243266,0.0536096,137.89,137.84,0.32093924]
[1767791243564,0.0536096,137.89,137.82,1.41857893]
[1767791243565,0.0536096,137.89,137.82,0.32093924]
[1767791244766,0.0536096,137.89,137.83,0.32093924]
[1767791244962,101.5695,137.94,137.85,0.32093924]
[1767791244963,7.94807893,137.94,137.85,0.32093924]
[1767791245165,85.6,137.93,137.85,0.32093924]
[1767791245463,85.6,137.93,137.85,0.37428381]
[1767791245969,85.6,137.93,137.85,0.05334457]
[1767791246172,87.01857893,137.93,137.85,0.05334457]
[1767791246666,85.6,137.93,137.85,0.05334457]
[1767791246859,87.01857893,137.93,137.85,0.05334457]
[1767791247568,6.5306,137.92,137.85,0.05334457]
[1767791247967,1.41857893,137.91,137.85,0.05334457]
[1767791248165,85.62,137.9,137.85,0.05334457]
[1767791248969,1.41857893,137.93,137.85,0.05334457]
[1767791249169,85.62,137.92,137.85,0.05334457]
[1767791249576,92.1507,137.92,137.85,0.05334457]
[1767791250266,1.41857893,137.91,137.85,0.05334457]
[1767791251173,0.05081122,137.89,137.81,0.32093924]
[1767791251676,0.05081122,137.89,137.82,0.32101827]
[1767791251968,101.5734,137.94,137.82,0.32101827]
[1767791251969,1.41857893,137.96,137.86,0.32101827]
[1767791252176,85.62,137.95,137.86,0.32101827]
[1767791252377,6.5308,137.91,137.83,0.32101827]
[1767791253474,6.5315,137.9,137.83,0.32101827]
[1767791253674,6.5315,137.9,137.86,0.04635061]
[1767791253978,85.62,137.9,137.86,0.04635061]
[1767791255678,85.62,137.9,137.83,0.32101827]
[1767791255881,0.04779447,137.89,137.83,0.32101827]
[1767791257879,0.04779447,137.89,137.83,6.85541827]
[1767791262586,0.04779447,137.89,137.85,0.32101827]
[1767791262792,85.64,137.94,137.85,0.32101827]
[1767791263088,85.64,137.94,137.87,0.32101827]
[1767791264082,85.64,137.94,137.89,0.04900961]
[1767791264278,6.5293,137.95,137.89,0.04900961]
[1767791264479,6.5293,137.95,137.89,0.37002788]
[1767791266291,6.5295,137.94,137.89,0.04900961]
[1767791269684,92.1486,137.96,137.89,0.37002788]
[1767791269983,85.62,137.97,137.89,0.37002788]
[1767791270487,85.62,137.97,137.89,0.32101827]
[1767791270993,1.41857893,137.96,137.89,0.32101827]
[1767791271381,1.41857893,137.96,137.87,0.32101827]
[1767791272692,6.5299,137.93,137.87,0.32101827]
[1767791273397,6.5299,137.93,137.89,0.04577888]
[1767791275495,6.5308,137.91,137.84,92.57471827]
[1767791275884,6.5308,137.91,137.85,0.32101827]
[1767791276586,6.5308,137.91,137.85,6.85471827]
[1767791276778,0.04718037,137.89,137.85,6.85471827]
[1767791277996,6.5308,137.91,137.85,6.85471827]
[1767791278187,6.5308,137.91,137.86,0.05092442]
[1767791278389,6.5308,137.91,137.86,0.37194269]
[1767791279097,6.5302,137.93,137.86,6.90504269]
[1767791279298,188.60367893,137.95,137.87,0.32101827]
[1767791280293,188.60367893,137.95,137.9,0.04778531]
[1767791280893,1.41857893,137.95,137.9,0.04778531]
[1767791282292,7.94687893,137.97,137.9,0.37350436]
[1767791282699,7.94687893,137.97,137.9,0.32571905]
[1767791283399,6.5283,137.97,137.92,0.04698171]
[1767791283895,6.5275,137.99,137.92,0.37270076]
[1767791284303,6.5275,137.99,137.92,0.32571905]
[1767791284709,6.5275,137.99,137.94,0.0486115]
[1767791284907,6.5265,138.01,137.94,0.37433055]
[1767791285109,1.41857893,138.02,137.94,0.37433055]
[1767791285810,7.94437893,138.02,137.95,0.32571905]
[1767791286701,7.94437893,138.02,137.97,0.05004316]
[1767791288009,101.5216,138.01,137.92,0.32571905]
[1767791288311,1.41857893,137.98,137.92,0.32571905]
[1767791288499,7.94627893,137.98,137.92,0.32571905]
[1767791289503,0.05103083,137.96,137.92,0.32571905]
[1767791290307,0.05103083,137.96,137.9,0.32571905]
[1767791290909,1.41857893,137.98,137.9,0.32571905]
[1767791291207,0.0497991,137.94,137.9,0.32571905]
[1767791291711,0.0497991,137.94,137.9,6.85701905]
[1767791291908,7.94657893,137.98,137.9,6.85701905]
[1767791292208,6.5281,137.97,137.9,6.85701905]
[1767791293197,6.5281,137.97,137.92,0.04932291]
[1767791294714,1.41857893,137.96,137.92,0.04932291]
[1767791300126,7.94707893,137.96,137.92,0.04932291]
[1767791301021,6.529,137.95,137.89,6.5316]
[1767791301215,6.58211931,137.95,137.89,6.5316]
[1767791303327,6.58211931,137.95,137.89,6.85731905]
[1767791303526,0.05311931,137.95,137.9,0.32571905]
[1767791305930,6.58211931,137.95,137.89,6.5316]
[1767791306433,6.58211931,137.95,137.84,101.6402]
[1767791306434,0.05311931,137.95,137.87,6.5323]
[1767791306733,2.21118386,137.94,137.86,0.32571905]
[1767791307335,0.0489083,137.91,137.86,0.32571905]
[1767791307532,0.0489083,137.91,137.86,6.85881905]
[1767791310229,0.0489083,137.91,137.87,0.32571905]
[1767791310936,2.21118386,137.94,137.87,0.32571905]
[1767791311534,8.74058386,137.94,137.88,6.5322]
[1767791311728,2.21118386,137.96,137.89,0.33570448]
[1767791312039,87.81118386,137.99,137.89,0.33570448]
[1767791312232,6.5285,137.97,137.91,6.86650448]
[1767791312535,6.5285,137.97,137.91,6.91867175]
[1767791312729,2.21118386,138.0,137.91,0.38787175]
[1767791312927,87.83118386,138.0,137.91,0.38787175]
[1767791313129,87.83118386,138.0,137.91,0.33570448]
[1767791313633,6.5274,137.99,137.94,0.05007427]
[1767791315437,87.83118386,138.0,137.94,0.05007427]
[1767791316536,94.35778386,138.0,137.94,0.05007427]
[1767791317337,89.27118386,138.0,137.91,0.33570448]
[1767791317537,0.04644919,137.98,137.89,0.33570448]
[1767791317939,87.83118386,138.0,137.89,0.33570448]
[1767791318542,6.5281,137.97,137.9,6.5312]
[1767791318745,0.04935041,137.96,137.9,6.5312]
[1767791320745,0.04935041,137.96,137.9,6.86690448]
[1767791321848,6.57785041,137.96,137.9,6.86690448]
[1767791323143,6.57785041,137.96,137.86,114.6913]
[1767791323144,6.529,137.95,137.88,6.86750448]
[1767791324042,0.05365566,137.93,137.88,6.86750448]
[1767791324243,0.05365566,137.93,137.89,6.5318]
[1767791327649,2.21118386,137.97,137.91,0.33570448]
[1767791327848,6.5279,137.98,137.91,0.33570448]
[1767791328043,2.21118386,138.0,137.91,0.33570448]
[1767791328250,85.6,138.01,137.91,0.33570448]
[1767791328946,6.5266,138.0,137.94,6.5293]
[1767791329254,2.21118386,138.02,137.95,0.04832682]
[1767791330653,6.5261,138.01,137.95,0.04832682]
[1767791333054,6.5261,138.01,137.95,6.57722682]
[1767791341061,6.5261,138.01,137.95,0.04832682]
[1767791345362,6.5266,138.0,137.95,0.04832682]
[1767791346571,2.21118386,138.02,137.95,0.04832682]
[1767791347067,85.58,138.01,137.95,0.04832682]
[1767791347668,2.21118386,137.99,137.91,6.84181509]
[1767791347868,2.2660636,137.99,137.89,0.31101509]
[1767791348068,85.58,137.98,137.89,0.31101509]
[1767791348665,6.5287,137.96,137.89,6.84241509]
[1767791348971,0.04694786,137.95,137.89,6.84241509]
[1767791351058,0.04694786,137.95,137.9,6.84231509]
[1767791351469,6.5287,137.96,137.9,6.84231509]
[1767791351873,0.05134814,137.94,137.9,6.84231509]
[1767791353176,0.05134814,137.94,137.9,0.31101509]
[1767791366281,6.53,137.93,137.87,0.31101509]
[1767791367384,6.5304,137.92,137.87,0.31101509]
[1767791368274,0.04598644,137.91,137.87,0.31101509]
[1767791372184,0.04598644,137.91,137.83,0.33120506]
[1767791372387,1.41500047,137.9,137.83,0.33120506]
[1767791373084,7.94640047,137.9,137.83,0.33120506]
[1767791373288,0.04643319,137.88,137.83,0.33120506]
[1767791374687,0.04643319,137.88,137.84,0.33120506]
[1767791378589,1.46143366,137.88,137.8,0.33120506]
[1767791379293,1.41500047,137.86,137.8,0.33120506]
[1767791379687,1.41500047,137.86,137.77,0.33120506]
[1767791380188,0.05362387,137.84,137.77,0.33120506]
[1767791380493,8.00282434,137.84,137.77,0.33120506]
[1767791381194,8.00282434,137.84,137.78,0.33120506]
[1767791382293,6.5348,137.83,137.78,0.33120506]
[1767791382493,6.5348,137.83,137.76,0.33120506]
[1767791382690,1.41500047,137.82,137.76,0.33120506]
[1767791383286,0.04913958,137.8,137.76,0.33120506]
[1767791385496,0.04913958,137.8,137.75,6.5382]
[1767791385699,0.04913958,137.8,137.75,6.86940506]
[1767791386494,0.04913958,137.8,137.75,0.33120506]
[1767791387083,1.46414005,137.8,137.73,6.87040506]
[1767791387287,0.04913958,137.8,137.74,0.33120506]
[1767791387490,8.00024005,137.8,137.74,0.33120506]
[1767791387683,1.46414005,137.8,137.72,0.33120506]
[1767791387888,7.95210047,137.78,137.72,0.33120506]
[1767791388493,0.05417159,137.76,137.72,0.33120506]
[1767791390404,0.05417159,137.76,137.7,0.33120506]
[1767791390601,0.05417159,137.76,137.71,0.33120506]
[1767791391403,0.05417159,137.76,137.71,6.87140506]
[1767791392196,0.05417159,137.76,137.71,0.33120506]
[1767791392399,1.46917206,137.76,137.68,0.33120506]
[1767791392791,1.41500047,137.76,137.7,0.33120506]
[1767791393191,0.05588053,137.73,137.7,0.33120506]
[1767791393594,0.05588053,137.73,137.7,6.87190506]
[1767791393795,6.5376,137.77,137.7,6.92632912]
[1767791394002,85.68,137.78,137.71,0.33120506]
[1767791394211,87.09500047,137.78,137.71,0.33120506]
[1767791394905,87.09500047,137.78,137.7,6.87190506]
[1767791395108,6.5376,137.77,137.7,6.87190506]
[1767791395296,87.09500047,137.78,137.7,0.33120506]
[1767791395694,0.05469626,137.75,137.7,0.33120506]
[1767791398512,6.59319626,137.75,137.68,0.33120506]
[1767791398898,6.5385,137.75,137.68,0.33120506]
[1767791399314,0.05211382,137.73,137.68,0.33120506]
[1767791399815,0.05211382,137.73,137.69,0.33120506]
[1767791401105,6.5383,137.76,137.7,0.05230233]
[1767791401808,7.95330047,137.76,137.7,0.05230233]
[1767791402005,6.5383,137.76,137.7,0.05230233]
[1767791402209,6.5383,137.76,137.7,6.59310233]
[1767791402412,6.5383,137.76,137.7,6.89888068]
[1767791403709,87.13500047,137.77,137.7,0.35808068]
[1767791403710,7.95340047,137.75,137.7,0.35808068]
[1767791406207,114.734,137.82,137.7,0.35808068]
[1767791406406,1.41500047,137.82,137.73,0.32362833]
[1767791407110,1.41500047,137.82,137.76,0.0529979]
[1767791407320,87.13500047,137.82,137.76,0.0529979]
[1767791407613,6.5362,137.8,137.76,0.0529979]
[1767791408314,87.13500047,137.82,137.76,0.0529979]
[1767791408315,6.5356,137.81,137.76,0.0529979]
[1767791409008,1.41500047,137.83,137.76,0.37662623]
[1767791409209,1.41500047,137.83,137.76,0.0529979]
[1767791410207,1.41500047,137.81,137.76,0.0529979]
[1767791410409,1.41500047,137.79,137.72,0.32362833]
[1767791411703,0.05403698,137.77,137.72,0.32362833]
[1767791412610,6.59173698,137.77,137.7,6.86412833]
[1767791412810,6.59173698,137.77,137.7,0.32362833]
[1767791414019,0.05403698,137.77,137.71,6.86392833]
[1767791414416,87.13500047,137.78,137.71,6.86392833]
[1767791414827,0.0529622,137.75,137.71,6.86392833]
[1767791415213,101.6712,137.81,137.72,0.32362833]
[1767791415214,6.536,137.81,137.72,0.32362833]
[1767791415520,6.536,137.81,137.74,0.32362833]
[1767791416217,6.5362,137.8,137.74,0.32362833]
[1767791416624,6.5362,137.8,137.76,0.05357215]
[1767791417013,92.2555,137.82,137.76,0.05357215]
[1767791417208,85.72,137.82,137.76,0.05357215]
[1767791418526,6.5356,137.81,137.76,0.05357215]
[1767791419324,6.5361,137.8,137.76,0.05357215]
[1767791420922,93.67060047,137.82,137.76,0.05357215]
[1767791421426,87.13500047,137.82,137.76,0.05357215]
[1767791422625,6.5356,137.81,137.76,0.05357215]
[1767791422921,1.41500047,137.83,137.76,0.37720048]
[1767791423127,87.13500047,137.83,137.76,0.37720048]
[1767791423324,87.13500047,137.83,137.76,0.32362833]
[1767791423325,85.72,137.83,137.76,0.32362833]
[1767791423828,101.6024,137.9,137.78,0.37181071]
[1767791424032,1.41500047,137.86,137.78,0.37181071]
[1767791424329,1.41500047,137.86,137.78,0.32362833]
[1767791424724,1.41500047,137.86,137.81,0.05062512]
[1767791424914,85.72,137.87,137.81,0.05062512]
[1767791424915,1.41500047,137.85,137.81,0.05062512]
[1767791425516,6.5344,137.84,137.78,0.32362833]
[1767791425715,0.05384493,137.84,137.78,0.32362833]
[1767791425917,87.13500047,137.83,137.76,6.86122833]
[1767791426618,85.72,137.83,137.76,6.86122833]
[1767791426930,0.04617493,137.81,137.76,6.86122833]
[1767791427122,0.04617493,137.81,137.74,6.86212833]
[1767791427622,2.21545539,137.84,137.74,6.86212833]
[1767791427822,0.04923344,137.79,137.74,6.86212833]
[1767791429523,0.04923344,137.79,137.75,0.32362833]
[1767791431331,0.04923344,137.79,137.76,0.32362833]
[1767791431529,92.2551,137.83,137.76,0.3719434]
[1767791431530,6.5351,137.83,137.76,0.3719434]
[1767791432331,6.534,137.85,137.78,0.33391704]
[1767791433322,6.534,137.85,137.78,6.87091704]
[1767791433518,6.534,137.85,137.8,0.04767963]
[1767791438040,6.5331,137.87,137.8,0.38159667]
[1767791438431,6.5331,137.87,137.8,0.33391704]
[1767791438941,6.5331,137.87,137.82,0.04902633]
[1767791439939,85.7,137.88,137.82,0.04902633]
[1767791440539,6.5328,137.87,137.82,0.04902633]
[1767791442242,6.5332,137.86,137.82,0.04902633]
[1767791442641,85.7,137.88,137.78,0.33391704]
[1767791442642,2.21545539,137.87,137.78,0.33391704]
[1767791442940,6.5342,137.84,137.78,0.33391704]
[1767791443134,6.5342,137.84,137.77,6.5371]
[1767791443337,6.5342,137.84,137.76,0.33391704]
[1767791443338,6.5337,137.86,137.78,6.537]
[1767791443641,2.21545539,137.87,137.78,6.537]
[1767791444544,6.5337,137.85,137.78,6.537]
[1767791444744,85.68,137.84,137.78,6.537]
[1767791446244,87.89545539,137.84,137.77,0.33391704]
[1767791447644,6.535,137.83,137.77,0.33391704]
[1767791447850,6.535,137.83,137.77,6.87141704]